[Event "Queen Rapid Challenge 2024"]
[Site "Bucharest"]
[Date "2024.03.10"]
[Round "6.7"]
[White "Sgircea, Silvia-Raluca"]
[Black "Popa, Andra-Maria"]
[Result "1-0"]
[ECO "A11"]
[WhiteElo "2224"]
[BlackElo "1774"]
[Annotator "RC"]
[PlyCount "124"]
[EventDate "2024.03.09"]
[EventType "rapid"]
[EventCountry "ROU"]
[SourceTitle "playchess.com"]
[Source "ChessBase"]
[SourceQuality "1"]
[TimeControl "900+10"]

1. Nf3 {[%emt 0:00:14]} Nf6 {[%emt 0:00:13]} 2. c4 {[%emt 0:00:06]} c6 {[%emt 0:00:16]} 3. Nc3 {[%emt 0:00:16]} d5 {[%emt 0:00:26]} 4. e3 {[%emt 0:00:07]} g6 {[%emt 0:00:21]} 5. b3 {[%emt 0:00:27]} Bg7 {[%emt 0:00:15]} 6. Bb2 {[%emt 0:00:08]} O-O {[%emt 0:00:19]} 7. Be2 {[%emt 0:00:11]} Re8 {[%emt 0:01:30]} 8. d4 {[%emt 0:00:15]} Nbd7 {[%emt 0:00:16]} 9. Qc2 {[%emt 0:00:10]} dxc4 {[%emt 0:03:16]} 10. Bxc4 {[%emt 0:01:32]} Nb6 {[%emt 0:00:37]} 11. Be2 {[%emt 0:00:21]} Nfd5 {[%emt 0:00:31]} 12. O-O {[%emt 0:00:15]} Nxc3 {[%emt 0:00:15]} 13. Bxc3 {[%emt 0:00:14]} Bf5 {[%emt 0:00:45]} 14. e4 {[%emt 0:00:14]} Bg4 {[%emt 0:00:21]} 15. Rfd1 {[%emt 0:00:12]} Qc7 {[%emt 0:00:21]} 16. h3 {[%emt 0:00:15]} Bxf3 {[%emt 0:00:08]} 17. Bxf3 {[%emt 0:00:07]} Rad8 {[%emt 0:00:14]} 18. Rac1 {[%emt 0:01:36]} e6 {[%emt 0:03:24]} 19. Bb2 {[%emt 0:00:35]} Qe7 {[%emt 0:00:51]} 20. e5 {[%emt 0:00:57]} Bh6 {[%emt 0:00:16]} 21. Ra1 {[%emt 0:00:25]} Nd5 {[%emt 0:00:08]} 22. g3 {[%emt 0:00:22]} Rc8 {[%emt 0:00:16]} 23. Qe2 {[%emt 0:01:51]} Qb4 {[%emt 0:01:06]} 24. Qd3 {[%emt 0:01:08]} a5 {[%emt 0:00:25]} 25. a3 {[%emt 0:00:26]} Qb6 {[%emt 0:00:44]} 26. h4 {[%emt 0:00:09]} Red8 {[%emt 0:00:34]} 27. h5 {[%emt 0:00:52]} c5 {[%emt 0:00:21]} 28. hxg6 {[%emt 0:00:13]} hxg6 {[%emt 0:00:11]} 29. Be4 {[%emt 0:01:00]} Kg7 {[%emt 0:01:15]} 30. dxc5 {[%emt 0:01:22]} Qxc5 {[%emt 0:00:11]} 31. Qf3 {[%emt 0:00:08]} Qe7 {[%emt 0:00:27]} 32. Bxd5 {[%emt 0:00:20]} Rxd5 {[%emt 0:00:11]} 33. Rxd5 {[%emt 0:00:07]} exd5 {[%emt 0:00:06]} 34. Qxd5 {[%emt 0:00:22]} Kh7 {[%emt 0:00:12]} 35. Rd1 {[%emt 0:01:28]} Rc2 {[%emt 0:00:11]} 36. Bd4 {[%emt 0:00:08]} b5 {[%emt 0:00:11]} 37. Qxb5 {[%emt 0:00:24]} Qxa3 {[%emt 0:00:09]} 38. Qb7 {[%emt 0:00:13]} Qf8 {[%emt 0:00:08]} 39. e6 {[%emt 0:00:15]} Re2 {[%emt 0:00:11]} 40. exf7 {[%emt 0:00:58]} Re7 {[%emt 0:00:11]} 41. Qb5 {[%emt 0:00:12]} Rxf7 {[%emt 0:00:07]} 42. Qxa5 {[%emt 0:00:10]} Qb8 {[%emt 0:00:10]} 43. b4 {[%emt 0:00:24]} Bg7 {[%emt 0:00:11]} 44. Bc5 {[%emt 0:00:15]} Rb7 {[%emt 0:00:10]} 45. Qa6 {[%emt 0:00:39]} Rf7 {[%emt 0:00:11]} 46. Rd6 {[%emt 0:00:15]} Qe8 {[%emt 0:00:11]} 47. Re6 {[%emt 0:00:15]} Qd7 {[%emt 0:00:09]} 48. Qd6 {[%emt 0:00:12]} Qxd6 {[%emt 0:00:10]} 49. Bxd6 {[%emt 0:00:08]} Rb7 {[%emt 0:00:08]} 50. Bc5 {[%emt 0:00:08]} Kg8 {[%emt 0:00:11]} 51. Kf1 {[%emt 0:00:08]} Kf7 {[%emt 0:00:08]} 52. Re4 {[%emt 0:00:06]} Bc3 {[%emt 0:00:08]} 53. Ke2 {[%emt 0:00:07]} Rd7 {[%emt 0:00:14]} 54. Rc4 {[%emt 0:00:15]} Bf6 {[%emt 0:00:10]} 55. b5 {[%emt 0:00:10]} Rb7 {[%emt 0:00:06]} 56. b6 {[%emt 0:00:07]} Bd8 {[%emt 0:00:09]} 57. Rb4 {[%emt 0:00:07]} Ke6 {[%emt 0:00:07]} 58. Kd3 {[%emt 0:00:16]} Kd5 {[%emt 0:00:07]} 59. Be3 {[%emt 0:00:07]} Kc6 {[%emt 0:00:12]} 60. Ke4 {[%emt 0:00:20]} Rf7 {[%emt 0:00:13]} 61. b7 {[%emt 0:00:18]} Re7+ {[%emt 0:00:11]} 62. Kf4 {[%emt 0:00:13]} g5+ {[%emt 0:00:09]} 1-0

[Event "Queen Rapid Challenge 2024"]
[Site "Bucharest"]
[Date "2024.03.10"]
[Round "6.8"]
[White "Badica, Ariana"]
[Black "Stanciu, Andreea-Briana"]
[Result "0-1"]
[ECO "B76"]
[WhiteElo "1708"]
[BlackElo "1976"]
[Annotator "RC"]
[PlyCount "58"]
[EventDate "2024.03.09"]
[EventType "rapid"]
[EventCountry "ROU"]
[SourceTitle "playchess.com"]
[Source "ChessBase"]
[SourceQuality "1"]
[TimeControl "900+10"]

1. e4 {[%emt 0:00:13]} c5 {[%emt 0:00:10]} 2. Nf3 {[%emt 0:00:08]} Nc6 {[%emt 0:00:10]} 3. d4 {[%emt 0:00:12]} cxd4 {[%emt 0:00:06]} 4. Nxd4 {[%emt 0:00:07]} g6 {[%emt 0:00:07]} 5. Nc3 {[%emt 0:01:41]} Bg7 {[%emt 0:00:09]} 6. Be3 {[%emt 0:00:21]} d6 {[%emt 0:00:22]} 7. Qd2 {[%emt 0:00:51]} Nf6 {[%emt 0:00:08]} 8. f3 {[%emt 0:00:13]} O-O {[%emt 0:00:30]} 9. O-O-O {[%emt 0:00:24]} Bd7 {[%emt 0:00:12]} 10. g4 {[%emt 0:00:15]} h5 {[%emt 0:02:21]} 11. gxh5 {[%emt 0:00:28]} Nxh5 {[%emt 0:00:07]} 12. Be2 {[%emt 0:00:34]} Ne5 {[%emt 0:01:02]} 13. Rhg1 {[%emt 0:01:11]} Rc8 {[%emt 0:00:10]} 14. f4 {[%emt 0:00:33]} Nc4 {[%emt 0:00:07]} 15. Bxc4 {[%emt 0:00:07]} Rxc4 {[%emt 0:00:07]} 16. f5 {[%emt 0:00:10]} Kh7 {[%emt 0:01:43]} 17. Qe2 {[%emt 0:01:03]} Rxc3 {[%emt 0:02:10]} 18. bxc3 {[%emt 0:00:12]} Qa5 {[%emt 0:00:06]} 19. fxg6+ {[%emt 0:02:55]} fxg6 {[%emt 0:00:07]} 20. Qg2 {[%emt 0:01:18]} Rf6 {[%emt 0:01:15]} 21. Kd2 {[%emt 0:01:37]} Be8 {[%emt 0:02:04]} 22. Qg5 {[%emt 0:02:26]} Qxa2 {[%emt 0:00:09]} 23. Rdf1 {[%emt 0:00:36]} Qc4 {[%emt 0:01:47]} 24. Rb1 {[%emt 0:01:14]} e5 {[%emt 0:01:12]} 25. Rxb7 {[%emt 0:00:24]} exd4 {[%emt 0:00:08]} 26. Bxd4 {[%emt 0:00:07]} Bf7 {[%emt 0:01:24]} 27. Bxf6 {[%emt 0:00:10]} Nxf6 {[%emt 0:00:06]} 28. Rbb1 {[%emt 0:00:12]} Nxe4+ {[%emt 0:00:08]} 29. Ke3 {[%emt 0:00:11]} Nxg5 {[%emt 0:00:07]} 0-1

[Event "Queen Rapid Challenge 2024"]
[Site "Bucharest"]
[Date "2024.03.10"]
[Round "6.9"]
[White "Fileru, Maria"]
[Black "Dobre, Ana-Margareta-Alexan"]
[Result "1/2-1/2"]
[ECO "D36"]
[WhiteElo "1822"]
[BlackElo "1914"]
[Annotator "RC"]
[PlyCount "52"]
[EventDate "2024.03.09"]
[EventType "rapid"]
[EventCountry "ROU"]
[SourceTitle "playchess.com"]
[Source "ChessBase"]
[SourceQuality "1"]
[TimeControl "900+10"]

1. d4 {[%emt 0:00:13]} Nf6 {[%emt 0:00:07]} 2. c4 {[%emt 0:00:07]} e6 {[%emt 0:00:06]} 3. Nc3 {[%emt 0:00:06]} d5 {[%emt 0:00:06]} 4. cxd5 {[%emt 0:00:07]} exd5 {[%emt 0:00:06]} 5. Bg5 {[%emt 0:00:07]} Be7 {[%emt 0:00:05]} 6. e3 {[%emt 0:00:07]} O-O {[%emt 0:00:12]} 7. Bd3 {[%emt 0:00:07]} Re8 {[%emt 0:01:10]} 8. Qc2 {[%emt 0:00:19]} h6 {[%emt 0:00:08]} 9. Bh4 {[%emt 0:00:07]} c6 {[%emt 0:00:12]} 10. Nf3 {[%emt 0:00:09]} Nbd7 {[%emt 0:00:13]} 11. O-O {[%emt 0:00:16]} Nf8 {[%emt 0:00:06]} 12. Rae1 {[%emt 0:02:28]} Ne4 {[%emt 0:00:39]} 13. Bxe7 {[%emt 0:00:16]} Qxe7 {[%emt 0:00:07]} 14. Nd2 {[%emt 0:00:23]} Nxd2 {[%emt 0:00:42]} 15. Qxd2 {[%emt 0:00:08]} Qg5 {[%emt 0:00:13]} 16. f4 {[%emt 0:01:23]} Qf6 {[%emt 0:00:06]} 17. Qf2 {[%emt 0:00:27]} Bf5 {[%emt 0:00:14]} 18. Qc2 {[%emt 0:01:03]} Bxd3 {[%emt 0:00:18]} 19. Qxd3 {[%emt 0:00:07]} Rad8 {[%emt 0:00:22]} 20. b4 {[%emt 0:00:44]} Nd7 {[%emt 0:00:23]} 21. b5 {[%emt 0:00:54]} Nb6 {[%emt 0:00:07]} 22. bxc6 {[%emt 0:00:48]} bxc6 {[%emt 0:00:19]} 23. a4 {[%emt 0:01:17]} Nc4 {[%emt 0:00:08]} 24. e4 {[%emt 0:01:22]} Nb2 {[%emt 0:01:35]} 25. Qd2 {[%emt 0:00:17]} Nc4 {[%emt 0:00:10]} 26. Qd3 {[%emt 0:00:06]} Nb2 {[%emt 0:04:54]} 1/2-1/2

[Event "Queen Rapid Challenge 2024"]
[Site "Bucharest"]
[Date "2024.03.10"]
[Round "6.10"]
[White "Ivanova, Elena"]
[Black "Schiopu, Oana-Magdalena"]
[Result "0-1"]
[ECO "B90"]
[WhiteElo "1560"]
[BlackElo "1850"]
[Annotator "NA RC"]
[PlyCount "150"]
[EventDate "2024.03.09"]
[EventType "rapid"]
[EventCountry "ROU"]
[SourceTitle "playchess.com"]
[Source "ChessBase"]
[SourceQuality "1"]
[TimeControl "900+10"]

1. e4 {[%emt 0:00:11]} c5 {[%emt 0:00:11]} 2. Nf3 {[%emt 0:00:06]} d6 {[%emt 0:00:07]} 3. d4 {[%emt 0:00:07]} cxd4 {[%emt 0:00:06]} 4. Nxd4 {[%emt 0:00:07]} Nf6 {[%emt 0:00:07]} 5. Nc3 {[%emt 0:00:06]} a6 {[%emt 0:00:06]} 6. Bd3 {[%emt 0:00:17]} e5 {[%emt 0:00:07]} 7. Nf3 {[%emt 0:00:12]} Nc6 {[%emt 0:00:11]} 8. O-O {[%emt 0:00:12]} Be7 {[%emt 0:00:10]} 9. Be3 {[%emt 0:00:31]} Be6 {[%emt 0:00:14]} 10. Nd2 {[%emt 0:00:35]} Ng4 {[%emt 0:00:35]} 11. h3 {[%emt 0:00:39]} Nxe3 {[%emt 0:00:35]} 12. fxe3 {[%emt 0:00:08]} Bg5 {[%emt 0:00:07]} 13. Qf3 {[%emt 0:00:31]} O-O {[%emt 0:00:20]} 14. Nc4 {[%emt 0:01:09]} b5 {[%emt 0:00:24]} 15. Nd2 {[%emt 0:00:15]} Rc8 {[%emt 0:00:19]} 16. Qe2 {[%emt 0:00:35]} Nb4 {[%emt 0:00:53]} 17. Nf3 {[%emt 0:00:22]} Be7 {[%emt 0:00:27]} 18. a3 {[%emt 0:00:08]} Nxd3 {[%emt 0:00:07]} 19. cxd3 {[%emt 0:00:09]} f6 {[%emt 0:00:14]} 20. Rae1 {[%emt 0:00:26]} d5 {[%emt 0:00:14]} 21. d4 {[%emt 0:00:35]} dxe4 {[%emt 0:00:19]} 22. Nxe4 {[%emt 0:00:08]} Bc4 {[%emt 0:00:08]} 23. Qf2 {[%emt 0:00:32]} Bxf1 {[%emt 0:00:14]} 24. Rxf1 {[%emt 0:00:07]} exd4 {[%emt 0:00:13]} 25. Nxd4 {[%emt 0:00:08]} Qd5 {[%emt 0:00:16]} 26. Nc3 {[%emt 0:00:14]} Qd7 {[%emt 0:00:24]} 27. Rd1 {[%emt 0:00:45]} Qb7 {[%emt 0:00:40]} 28. Qf5 {[%emt 0:00:20]} Bc5 {[%emt 0:01:06]} 29. Nce2 {[%emt 0:01:01]} Rfe8 {[%emt 0:00:35]} 30. Qf4 {[%emt 0:01:20]} Qe4 {[%emt 0:00:42]} 31. Kf2 {[%emt 0:00:54]} Bxd4 {[%emt 0:00:35]} 32. Qxe4 {[%emt 0:00:38]} Rxe4 {[%emt 0:00:13]} 33. exd4 {[%emt 0:00:08]} Rc2 {[%emt 0:00:07]} 34. Re1 {[%emt 0:00:11]} Rxd4 {[%emt 0:00:12]} 35. Kf3 {[%emt 0:00:09]} Rd3+ {[%emt 0:00:12]} 36. Kg4 {[%emt 0:00:17]} Rxb2 {[%emt 0:00:15]} 37. Nf4 {[%emt 0:00:08]} Rd4 {[%emt 0:00:08]} 38. Kf5 {[%emt 0:00:16]} g6+ {[%emt 0:00:40]} 39. Kg4 {[%emt 0:00:21]} g5 {[%emt 0:00:08]} 40. g3 {[%emt 0:00:17]} gxf4 {[%emt 0:00:08]} 41. gxf4 {[%emt 0:00:06]} Rf2 {[%emt 0:00:19]} 42. Re6 {[%emt 0:00:20]} Rdxf4+ {[%emt 0:00:15]} 43. Kg3 {[%emt 0:00:08]} R4f3+ {[%emt 0:00:13]} 44. Kg4 {[%emt 0:00:10]} Rxa3 {[%emt 0:00:07]} 45. Rb6 {[%emt 0:00:24]} Rg2+ {[%emt 0:00:17]} 46. Kf5 {[%emt 0:00:09]} Rxh3 {[%emt 0:00:11]} 47. Rxa6 {[%emt 0:00:16]} Rh5+ {[%emt 0:00:10]} 48. Kf4 {[%emt 0:00:11]} Kg7 {[%emt 0:00:06]} 49. Kf3 {[%emt 0:00:13]} Rb2 {[%emt 0:00:14]} 50. Kg4 {[%emt 0:00:09]} Rg5+ {[%emt 0:00:07]} 51. Kf4 {[%emt 0:00:08]} h5 {[%emt 0:00:08]} 52. Ra7+ {[%emt 0:00:08]} Kg6 {[%emt 0:00:07]} 53. Ra8 {[%emt 0:00:07]} Rg4+ {[%emt 0:00:24]} 54. Kf3 {[%emt 0:00:07]} Rb3+ {[%emt 0:00:07]} 55. Kf2 {[%emt 0:00:07]} Kf5 {[%emt 0:00:07]} 56. Re8 {[%emt 0:00:09]} Kf4 {[%emt 0:00:10]} 57. Ke2 {[%emt 0:00:23]} Rg2+ {[%emt 0:00:10]} 58. Kf1 {[%emt 0:00:09]} Ra2 {[%emt 0:00:07]} 59. Re1 {[%emt 0:00:10]} Kg3 {[%emt 0:00:11]} 60. Rc1 {[%emt 0:00:11]} Rab2 {[%emt 0:00:17]} 61. Ke1 {[%emt 0:00:10]} Rb1 {[%emt 0:00:13]} 62. Kd2 {[%emt 0:00:08]} Rxc1 {[%emt 0:00:10]} 63. Kxc1 {[%emt 0:00:07]} h4 {[%emt 0:00:06]} 64. Kc2 {[%emt 0:00:07]} h3 {[%emt 0:00:07]} 65. Kxb3 {[%emt 0:00:08]} h2 {[%emt 0:00:06]} 66. Kb4 {[%emt 0:00:07]} h1=Q {[%emt 0:00:08]} 67. Kc5 {[%emt 0:00:07]} Qe4 {[%emt 0:00:11]} 68. Kd6 {[%emt 0:00:07]} Qe5+ {[%emt 0:00:06]} 69. Kc6 {[%emt 0:00:06]} b4 {[%emt 0:00:08]} 70. Kb6 {[%emt 0:00:09]} b3 {[%emt 0:00:06]} 71. Kc6 {[%emt 0:00:07]} b2 {[%emt 0:00:08]} 72. Kb6 {[%emt 0:00:06]} b1=R+ {[%emt 0:00:07]} 73. Kc6 {[%emt 0:00:07]} Rc1+ {[%emt 0:00:07]} 74. Kb6 {[%emt 0:00:08]} Qb2+ {[%emt 0:00:07]} 75. Ka5 {[%emt 0:00:06]} Ra1# {[%emt 0:00:06]} 0-1

[Event "Queen Rapid Challenge 2024"]
[Site "Bucharest"]
[Date "2024.03.10"]
[Round "7.1"]
[White "Bulmaga, Irina"]
[Black "Ciolacu, Alessia-Mihaela"]
[Result "1-0"]
[ECO "C45"]
[WhiteElo "2429"]
[BlackElo "2175"]
[Annotator "TA"]
[PlyCount "79"]
[EventDate "2024.03.09"]
[EventType "rapid"]
[EventCountry "ROU"]
[SourceTitle "playchess.com"]
[Source "ChessBase"]
[SourceQuality "1"]
[TimeControl "900+10"]

{[%evp 11,79,-5,-8,0,0,-7,-2,0,0,0,0,0,4,0,8,9,32,28,48,39,45,25,54,45,72,44,47,42,49,40,77,78,77,42,43,25,45,35,39,8,10,14,9,7,9,9,10,9,19,18,66,11,123,120,1506,4133,5477,3537,1708,1985,29966,29967,29966,29968,29975,29976,29976,29975,29974,29975]} 1. e4 {[%emt 0:00:12]} e5 {[%emt 0:00:13]} 2. Nf3 {[%emt 0:00:07]} Nc6 {[%emt 0:00:07]} 3. d4 {[%emt 0:00:07]} exd4 {[%emt 0:00:08]} 4. Nxd4 {[%emt 0:00:08]} Nf6 {[%emt 0:00:34]} 5. Nxc6 {[%emt 0:00:08]} bxc6 {[%emt 0:00:07]} 6. Nd2 {[%emt 0:00:15]} d5 {[%emt 0:00:57]} 7. exd5 {[%emt 0:00:08]} cxd5 {[%emt 0:00:13]} 8. Bb5+ {[%emt 0:00:08]} Bd7 {[%emt 0:00:21]} 9. Bxd7+ {[%emt 0:00:08] The position is equal.} Qxd7 {[%emt 0:00:07]} 10. O-O {[%emt 0:00:09]} Be7 {[%emt 0:00:38]} 11. b3 {[%emt 0:00:11]} O-O {[%emt 0:00:33]} 12. Bb2 {[%emt 0:00:07]} Qf5 {[%emt 0:00:51]} 13. Re1 {[%emt 0:00:46]} Bc5 {[%emt 0:02:10]} (13... Bd6 {simplifies} 14. Nf3 Rfe8 15. Bxf6 Rxe1+ 16. Qxe1 Qxf6 17. Rd1 c6) 14. Qf3 {[%emt 0:03:17]} Qxc2 {[%emt 0:01:48]} 15. Bxf6 {[%emt 0:00:08]} Qxd2 {[%emt 0:00:13]} 16. Bc3 {[%emt 0:01:19]} (16. Red1 {simplifies} Qxf2+ 17. Qxf2 Bxf2+ 18. Kxf2 gxf6 19. Rxd5 a5 20. Rc1) 16... Qh6 {[%emt 0:03:27]} 17. Qxd5 {[%emt 0:00:18]} Bd6 {[%emt 0:00:46]} 18. Be5 {[%emt 0:01:25] Active counter play!} Rfe8 {[%emt 0:01:40]} 19. Bxd6 {[%emt 0:00:22]} Qxd6 {[%emt 0:00:20]} 20. Qxd6 {[%emt 0:00:35]} Rxe1+ {[%emt 0:00:17]} 21. Rxe1 {[%emt 0:00:07]} cxd6 $14 {[%emt 0:00:06][%mdl 4096] Endgame. KR-KR} 22. Rc1 {[%emt 0:00:31] Prevents Rc8} Kf8 {[%emt 0:00:26]} 23. Kf1 {[%emt 0:00:17]} Ke7 {[%emt 0:00:13]} 24. Rc7+ {[%emt 0:00:41]} Ke6 {[%emt 0:00:07]} 25. Ke2 {[%emt 0:00:31]} a5 {[%emt 0:00:25]} 26. Kd3 {[%emt 0:00:18]} Rb8 {[%emt 0:00:17] Wards off Rb7} 27. Kc4 {[%emt 0:02:48]} Rb4+ {[%emt 0:00:14]} 28. Kc3 {[%emt 0:00:07]} Rh4 {[%emt 0:00:38]} 29. h3 {[%emt 0:00:27]} Rf4 {[%emt 0:00:07]} 30. f3 {[%emt 0:00:10]} h5 {[%emt 0:00:14]} (30... Rf5 $11 {feels stronger.}) 31. a3 {[%emt 0:01:17]} (31. a4 $14) 31... h4 {[%emt 0:00:29] [#]} (31... Rf5 $11) 32. Rc4 $1 $16 {[%emt 0:00:19]} Rxc4+ {[%emt 0:01:27][%mdl 8192] This move loses the game for Black.} (32... Rf5 $16) 33. Kxc4 {[%emt 0:00:07] KP-KP} Ke5 {[%emt 0:00:14] [#]} 34. b4 $1 {[%emt 0:00:11]} ({Worse is} 34. Kb5 Kd4 $11) 34... d5+ {[%emt 0:00:14]} 35. Kc5 {[%emt 0:01:05]} axb4 {[%emt 0:00:12]} 36. axb4 {[%emt 0:00:17][%cal Ba3b4,Bb4b5,Bb5b6][%mdl 32] White mates.} d4 {[%emt 0:00:11]} 37. Kc4 {[%emt 0:00:07]} g5 {[%emt 0:00:10]} 38. b5 {[%emt 0:00:12]} d3 {[%emt 0:00:09]} 39. Kxd3 {[%emt 0:00:08]} Kd5 {[%emt 0:00:10]} 40. b6 {[%emt 0:00:07] Weighted Error Value: White=0.10 (very precise) /Black=0.32.  Loses game:     	---       	Black=1      Mistake:       	White=1     	Black=2      Inaccurate:     	White=3     	Black=4      OK:         	White=12    	Black=9      Best:        	White=1     	Black=1      Strong:       	White=1     	---} 1-0

[Event "Queen Rapid Challenge 2024"]
[Site "Bucharest"]
[Date "2024.03.10"]
[Round "7.2"]
[White "Cosma, Elena-Luminita"]
[Black "Obada, Ema"]
[Result "1-0"]
[ECO "D02"]
[WhiteElo "2238"]
[BlackElo "1976"]
[Annotator "TA"]
[PlyCount "59"]
[EventDate "2024.03.09"]
[EventType "rapid"]
[EventCountry "ROU"]
[SourceTitle "playchess.com"]
[Source "ChessBase"]
[SourceQuality "1"]
[TimeControl "900+10"]

{[%evp 9,59,23,35,-14,0,0,0,-2,22,6,36,21,26,21,44,-31,35,41,88,83,96,79,113,129,146,156,170,122,139,125,256,257,292,238,221,223,225,238,303,299,318,330,485,366,370,374,454,439,977,991,1773,1833]} 1. Nf3 {[%emt 0:00:11]} Nf6 {[%emt 0:00:11]} 2. g3 {[%emt 0:00:07]} e6 {[%emt 0:00:07]} 3. Bg2 {[%emt 0:00:07]} d5 {[%emt 0:00:06]} 4. O-O {[%emt 0:00:07]} c5 {[%emt 0:00:07]} 5. d4 {[%emt 0:00:13]} cxd4 {[%emt 0:00:07]} 6. b3 {[%emt 0:00:07]} (6. Nxd4 $14 {deserves consideration.} e5 7. Nb5) 6... Be7 {[%emt 0:00:35]} 7. Bb2 {[%emt 0:00:09]} O-O {[%emt 0:00:25]} 8. Nxd4 {[%emt 0:00:11] The position is equal.} Nbd7 {[%emt 0:00:27]} 9. Nd2 {[%emt 0:00:47][%cal Bb1d2,Bd2c4,Bc4d6,Bd6f5,Bf5e7][%mdl 32]} e5 {[%emt 0:01:28]} 10. Nf5 {[%emt 0:00:16]} Bc5 {[%emt 0:01:35]} 11. e4 $1 {[%emt 0:00:48]} dxe4 {[%emt 0:04:06]} 12. Ne3 {[%emt 0:00:47]} (12. Nxe4 Nxe4 13. Bxe4 Nf6 $15) (12. Re1 $14) 12... Bxe3 {[%emt 0:01:05]} (12... Bd4 $1 $15 13. Ba3 Nc5 (13... Bxa1 14. Qxa1 Re8 15. Ndc4 $11)) 13. fxe3 $14 {[%emt 0:00:06][%cal Od2c4]} Qb6 {[%emt 0:00:55]} (13... Nc5 $14) 14. Nc4 $1 $16 {[%emt 0:00:08]} Qe6 {[%emt 0:00:55]} 15. Qd6 {[%emt 0:01:04]} Qxd6 {[%emt 0:00:41]} 16. Nxd6 {[%emt 0:00:08]} Rd8 {[%emt 0:01:53]} 17. Rad1 {[%emt 0:02:14] White has more active pieces.} ({Stronger than} 17. Bxe4 Nc5 18. Nxc8 Ncxe4 (18... Nfxe4 19. Ne7+ Kf8 20. Nf5 $17) 19. Ne7+ Kf8 $19) (17. Nxe4 Nxe4 18. Bxe4 Nc5 $16) 17... Nf8 {[%emt 0:02:21]} 18. Bxe5 {[%emt 0:00:55] This pair of bishops is nice.} (18. Nxe4 $18 Rxd1 19. Rxd1 Nxe4 20. Bxe4) 18... Ng4 {[%emt 0:00:13][%csl LRe3,LRe5]} 19. Bf4 $36 {[%emt 0:00:28][%mdl 2048] White has strong initiative.} (19. Nxf7 $2 {too greedy.} Rxd1 20. Rxd1 Nxe3 $19 (20... Kxf7 21. Rf1+ Ke8 22. Bxg7 $17)) 19... f5 {[%emt 0:00:16] Black cannot hold the game after this.} (19... Ng6 $16) 20. Bg5 $18 {[%emt 0:02:12]} Rd7 {[%emt 0:00:38]} 21. Nxf5 {[%emt 0:00:30]} Rxd1 {[%emt 0:00:14]} 22. Ne7+ {[%emt 0:00:06]} Kh8 {[%emt 0:00:06] [#] ...Rxf1+ is the strong threat.} 23. Rxd1 {[%emt 0:00:07][%cal Od1d8] aiming for Rd8!} Be6 {[%emt 0:00:17]} 24. Bxe4 {[%emt 0:00:32]} h6 {[%emt 0:00:08]} 25. Bf4 {[%emt 0:00:21]} ({Resist} 25. Bxb7 Rb8) 25... g5 {[%emt 0:00:11]} (25... Re8 {was called for.}) 26. Bc7 {[%emt 0:01:39]} Re8 {[%emt 0:00:07]} 27. Bd6 {[%emt 0:00:24]} Nd7 {[%emt 0:00:16]} 28. Bxb7 {[%emt 0:00:56] White is clearly winning.} Nxe3 {[%emt 0:00:09]} (28... Nge5 $142 29. Bg2 Kg7) 29. Re1 {[%emt 0:00:13]} Nxc2 {[%emt 0:00:11]} 30. Rxe6 {[%emt 0:00:10] Weighted Error Value: White=0.19 (very precise) /Black=0.37.  Mistake:       	White=2     	Black=5      Inaccurate:     	---       	Black=2      OK:         	White=11    	Black=2      Best:        	White=3     	Black=3      Strong:       	White=2     	---} 1-0

[Event "Queen Rapid Challenge 2024"]
[Site "Bucharest"]
[Date "2024.03.10"]
[Round "7.3"]
[White "Pirvulescu, Ekaterina"]
[Black "Raeva, Elitsa"]
[Result "0-1"]
[ECO "B42"]
[WhiteElo "2091"]
[BlackElo "2185"]
[Annotator "RC"]
[PlyCount "60"]
[EventDate "2024.03.09"]
[EventType "rapid"]
[EventCountry "ROU"]
[SourceTitle "playchess.com"]
[Source "ChessBase"]
[SourceQuality "1"]
[TimeControl "900+10"]

1. e4 {[%emt 0:00:11]} c5 {[%emt 0:00:13]} 2. Nf3 {[%emt 0:00:08]} a6 {[%emt 0:00:06]} 3. c4 {[%emt 0:00:07]} e6 {[%emt 0:00:24]} 4. d4 {[%emt 0:00:15]} cxd4 5. Nxd4 {[%emt 0:00:06]} Nf6 {[%emt 0:00:24]} 6. Bd3 {[%emt 0:02:09]} Qc7 {[%emt 0:01:14]} 7. Qe2 {[%emt 0:00:50]} d6 {[%emt 0:01:29]} 8. O-O {[%emt 0:00:25]} Be7 {[%emt 0:00:08]} 9. Nc3 {[%emt 0:00:09]} O-O {[%emt 0:00:28]} 10. f4 {[%emt 0:00:50]} Nbd7 {[%emt 0:03:11]} 11. Kh1 {[%emt 0:00:19]} Re8 {[%emt 0:00:07]} 12. Bd2 {[%emt 0:00:29]} Bf8 {[%emt 0:00:32]} 13. Rae1 {[%emt 0:00:47]} e5 {[%emt 0:00:31]} 14. fxe5 {[%emt 0:04:18]} Nxe5 {[%emt 0:00:12]} 15. Rxf6 {[%emt 0:01:12]} gxf6 {[%emt 0:00:13]} 16. Nd5 {[%emt 0:00:11]} Qd8 {[%emt 0:00:36]} 17. Rf1 {[%emt 0:00:52]} Bg7 {[%emt 0:00:20]} 18. Bb1 {[%emt 0:00:30]} Bg4 {[%emt 0:02:17]} 19. Qf2 {[%emt 0:00:28]} Kh8 {[%emt 0:02:22]} 20. b3 {[%emt 0:01:01]} Rc8 {[%emt 0:00:34]} 21. h3 {[%emt 0:00:44]} Be6 {[%emt 0:00:34]} 22. Nf4 {[%emt 0:00:16]} Qe7 {[%emt 0:01:38]} 23. Nh5 {[%emt 0:00:12]} Rg8 {[%emt 0:00:11]} 24. Qh4 {[%emt 0:00:44]} Rc5 {[%emt 0:01:05]} 25. Bb4 {[%emt 0:00:29]} Ng6 {[%emt 0:00:06]} 26. Qg3 {[%emt 0:01:13]} Rxh5 {[%emt 0:00:06]} 27. Bxd6 {[%emt 0:00:22]} Qd7 {[%emt 0:00:07]} 28. c5 {[%emt 0:00:14]} Bxh3 {[%emt 0:00:14]} 29. Kg1 {[%emt 0:00:07]} Rg5 {[%emt 0:00:15]} 30. Qf3 {[%emt 0:00:17]} Bxg2 {[%emt 0:00:13]} 0-1